Cogmind - Beta 12 @@@ ROGUE MODE // 2023.05.10 @ 23:14:55 Player: Mr Goldstein Result: Destroyed by Enhanced Grunt with Neutron Cannon Performance ------------- Evolutions (3) 1500 Regions Visited (11) 2200 Robots Destroyed (0) 0 Value Destroyed (0) 0 Prototype IDs (216) 4320 Alien Tech Used (0) 0 Bonus (4253) 4253 TOTAL SCORE: 12273 Bonus ------- Pacifist 928 Follower Combat Kills 25 Met Data Miner 300 Used Data Conduit 3000 Cogmind --------- Core Integrity 0/700 Matter 290/300 Energy 98/100 System Corruption 0% Temperature Cool (0) Movement Core (50) Location -7/Data Miner Parts ------- > --- POWER (1) -------- (None) > --- PROPULSION (6) --- (None) > --- UTILITY (4) ------ Advanced Visual Processing Unit Propulsion Shielding > --- WEAPON (2) ------- (None) > --- INVENTORY (5) ---- Light Nuclear Core Light Armor Plating System Shield Greatsword Peak State ------------ > --- POWER ------------ Light Nuclear Core > --- PROPULSION ------- Flight Unit Flight Unit Flight Unit Xenon Bombardment Thruster > --- UTILITY ---------- Advanced Visual Processing Unit Propulsion Shielding Propulsion Shielding > --- WEAPON ----------- (None) > --- INVENTORY -------- Light Armor Plating Light Armor Plating System Shield [Rating: 15] Favorites ----------- Power Light Nuclear Core Engine Light Ion Engine Power Core Light Nuclear Core Propulsion Flight Unit Treads Light Treads Flight Unit Flight Unit Utility Propulsion Shielding Storage Small Storage Unit Processor Advanced Visual Processing Unit Protection Propulsion Shielding Weapon Assault Rifle Ballistic Gun Assault Rifle Slashing Weapon Greatsword Build | -11 -10 -10 -9 -9 -9 -8 -8 -7 -7 -7 -7 ------- Run | Jun Mat Min Mat Min Exi Min Mat Fac Low Low Dat Slots Evolved 6 | . . . 2 . . . 2 2 . . . Power . | . . . . . . . . . . . . Propulsion 4 | . . . 2 . . . 1 1 . . . Utility 2 | . . . . . . . 1 1 . . . Weapon . | . . . . . . . . . . . . Parts Attached 17 | 6 . . 2 1 . . 1 5 1 . 1 Power 2 | 1 . . . . . . . 1 . . . Engine 1 | 1 . . . . . . . . . . . Core 1 | . . . . . . . . 1 . . . Reactor . | . . . . . . . . . . . . Propulsion 7 | 2 . . . 1 . . . 4 . . . Treads 2 | 2 . . . . . . . . . . . Leg . | . . . . . . . . . . . . Wheel . | . . . . . . . . . . . . Hover . | . . . . . . . . . . . . Flight 5 | . . . . 1 . . . 4 . . . Utility 5 | 1 . . 2 . . . 1 . 1 . . Device . | . . . . . . . . . . . . Storage 1 | 1 . . . . . . . . . . . Processor 1 | . . . . . . . 1 . . . . Hackware . | . . . . . . . . . . . . Protection 3 | . . . 2 . . . . . 1 . . Artifact . | . . . . . . . . . . . . Weapon 3 | 2 . . . . . . . . . . 1 Energy Gun . | . . . . . . . . . . . . Energy Cannon . | . . . . . . . . . . . . Ballistic Gun 2 | 2 . . . . . . . . . . . Ballistic Cannon . | . . . . . . . . . . . . Launcher . | . . . . . . . . . . . . Special Weapon . | . . . . . . . . . . . . Impact Weapon . | . . . . . . . . . . . . Slashing Weapon 1 | . . . . . . . . . . . 1 Piercing Weapon . | . . . . . . . . . . . . Special Melee Weapon . | . . . . . . . . . . . . Unidentified Prototypes . | . . . . . . . . . . . . Parts Lost 9 | . 1 . . . . . 1 5 1 1 . Power 1 | . . . . . . . . 1 . . . Propulsion 6 | . 1 . . . . . 1 3 1 . . Utility 2 | . . . . . . . . 1 . 1 . Weapon . | . . . . . . . . . . . . Highest Loss Streak 5 | . 1 . . . . . 1 5 1 1 . To Critical Strikes . | . . . . . . . . . . . . Average Slot Usage (%) 27 | . 25 14 16 33 33 33 27 49 29 18 16 Treads 4 | . 25 14 11 3 . . . . . . . Flight 6 | . . . . 7 11 11 7 24 6 . . Processor 3 | . . . . . . . 1 7 7 7 7 Protection 11 | . . . 5 22 22 22 18 13 15 10 7 Naked Turns . | . . . . . . . . . . . . Heaviest Build 12 | 12 . . 2 2 2 2 2 7 4 4 6 Greatest Support 40 | 40 3 3 3 4 4 4 4 18 4 3 3 Greatest Overweight (x) 1 | . . . . . . . . . 1 1 1 Average Overweight (x) . | . . . . . . . . . . . . Largest Inventory Capacity 8 | 8 5 5 5 5 5 5 5 5 5 5 5 Average Capacity 5 | 6 5 5 5 5 5 5 5 5 5 5 5 Most Carried 5 | . 3 3 5 5 5 5 5 4 3 5 5 Average Carried 3 | . . 3 3 5 5 5 5 3 3 4 4 Final Capacity 5 | 5 5 5 5 5 5 5 5 5 5 5 5 Final Carried 5 | . 3 3 5 5 5 5 5 4 3 5 5 Class Distribution -------------------- 93% | Mutant 6% | Sprinter Dominant Class ---------------- Mutant | -10/Materials Mutant | -10/Mines Mutant | -9/Materials Mutant | -9/Mines Mutant | -9/Exiles Mutant | -8/Mines Mutant | -8/Materials Mutant | -7/Factory Mutant | -7/Lower Caves Mutant | -7/Lower Caves Mutant | -7/Data Miner Resources | -11 -10 -10 -9 -9 -9 -8 -8 -7 -7 -7 -7 ----------- Run | Jun Mat Min Mat Min Exi Min Mat Fac Low Low Dat Matter Collected 311 | 252 . . . 16 . . . . 43 . . Remotely . | . . . . . . . . . . . . Salvage Created . | . . . . . . . . . . . . Parts . | . . . . . . . . . . . . Haulers Intercepted . | . . . . . . . . . . . . Recyclers Shooed . | . . . . . . . . . . . . Parts Field Recycled . | . . . . . . . . . . . . Retrieved Matter . | . . . . . . . . . . . . Parts Self-Destructed . | . . . . . . . . . . . . Prevented 2 | . . . . . . . . . 2 . . Kills | -11 -10 -10 -9 -9 -9 -8 -8 -7 -7 -7 -7 ------- Run | Jun Mat Min Mat Min Exi Min Mat Fac Low Low Dat Combat Hostiles Destroyed . | . . . . . . . . . . . . Classes Destroyed . | . . . . . . . . . . . . Best Kill Streak . | . . . . . . . . . . . . Combat Bots Only . | . . . . . . . . . . . . Max Kills in Single Turn . | . . . . . . . . . . . . Gunslinging . | . . . . . . . . . . . . Exploded . | . . . . . . . . . . . . Melee . | . . . . . . . . . . . . Uniques/NPCs Destroyed . | . . . . . . . . . . . . Combat | -11 -10 -10 -9 -9 -9 -8 -8 -7 -7 -7 -7 -------- Run | Jun Mat Min Mat Min Exi Min Mat Fac Low Low Dat Damage Taken 1576 | . 396 . 27 28 . . 113 410 33 235 334 Core 962 | . 138 . 8 6 . . 90 221 20 145 334 Absorbed by Shields . | . . . . . . . . . . . . Redirected to Shielding 81 | . . . 4 6 . . 5 62 4 . . Core Remaining (%) 80 | 100 . 44 . . . 96 83 . . . . Volleys Fired . | . . . . . . . . . . . . Largest . | . . . . . . . . . . . . Hottest . | . . . . . . . . . . . . Shots Fired . | . . . . . . . . . . . . Gun . | . . . . . . . . . . . . Cannon . | . . . . . . . . . . . . Launcher . | . . . . . . . . . . . . Special . | . . . . . . . . . . . . Kinetic . | . . . . . . . . . . . . Thermal . | . . . . . . . . . . . . Explosive . | . . . . . . . . . . . . Electromagnetic . | . . . . . . . . . . . . Robot Hit Streak . | . . . . . . . . . . . . Robot Miss Streak . | . . . . . . . . . . . . Penetration Max . | . . . . . . . . . . . . Secondary Targets . | . . . . . . . . . . . . Shots Hit Robots 1 | . . . . . . . . . . . 1 Core Hits 1 | . 1 . . . . . . . . . . Critical Kills . | . . . . . . . . . . . . Critical Parts Destroyed . | . . . . . . . . . . . . Critical Strikes . | . . . . . . . . . . . . Melee Attacks 1 | . . . . . . . . . . . 1 Impact . | . . . . . . . . . . . . Slashing 1 | . . . . . . . . . . . 1 Piercing . | . . . . . . . . . . . . Sneak Attacks 1 | . . . . . . . . . . . 1 Combat Hostiles . | . . . . . . . . . . . . Follow-up Attacks . | . . . . . . . . . . . . Damage Inflicted 131 | . 17 . 6 . . . 9 . . . 99 Guns . | . . . . . . . . . . . . Cannons . | . . . . . . . . . . . . Explosions . | . . . . . . . . . . . . Melee 99 | . . . . . . . . . . . 99 Ramming 32 | . 17 . 6 . . . 9 . . . . Kinetic . | . . . . . . . . . . . . Thermal . | . . . . . . . . . . . . Explosive . | . . . . . . . . . . . . Electromagnetic . | . . . . . . . . . . . . Impact . | . . . . . . . . . . . . Slashing 99 | . . . . . . . . . . . 99 Piercing . | . . . . . . . . . . . . Highest Corruption 3 | . 3 3 . . . . 2 . . . . Average Corruption 2 | . 2 3 . . . . 2 . . . . Corruption Purged . | . . . . . . . . . . . . Corruption Blocked . | . . . . . . . . . . . . Effects 1 | . . 1 . . . . . . . . . Heat Flow Errors 1 | . . 1 . . . . . . . . . Overload Shots . | . . . . . . . . . . . . Overflow Damage . | . . . . . . . . . . . . Projectiles . | . . . . . . . . . . . . Explosions . | . . . . . . . . . . . . Melee . | . . . . . . . . . . . . Knockbacks . | . . . . . . . . . . . . Impact . | . . . . . . . . . . . . Kinetic . | . . . . . . . . . . . . Secondary . | . . . . . . . . . . . . Self-Inflicted Damage 14 | . 7 . 3 . . . 4 . . . . Shots . | . . . . . . . . . . . . Rammed 7 | . 4 . 1 . . . 2 . . . . Targets Rammed 7 | . 4 . 1 . . . 2 . . . . Kicked . | . . . . . . . . . . . . Crushed . | . . . . . . . . . . . . Highest Temperature 100 | . 8 100 . . . . . 24 . . . Average Temperature 47 | . 8 62 . . . . . 24 . . . Received Heat Transfer 249 | . 153 . 6 . . . 36 . . 54 . Siege Activations . | . . . . . . . . . . . . Robots Corrupted . | . . . . . . . . . . . . Combat Hostiles . | . . . . . . . . . . . . Parts Fried . | . . . . . . . . . . . . Impact Corruptions . | . . . . . . . . . . . . Robots Melted . | . . . . . . . . . . . . Combat Hostiles . | . . . . . . . . . . . . Parts Melted . | . . . . . . . . . . . . Heat Transferred . | . . . . . . . . . . . . Parts Sabotaged . | . . . . . . . . . . . . Parts Stolen . | . . . . . . . . . . . . Parts Stripped . | . . . . . . . . . . . . Power Chain Reactions . | . . . . . . . . . . . . Missiles Intercepted . | . . . . . . . . . . . . Alert | -11 -10 -10 -9 -9 -9 -8 -8 -7 -7 -7 -7 ------- Run | Jun Mat Min Mat Min Exi Min Mat Fac Low Low Dat Peak Influence 150 | . 90 61 91 50 . . 150 131 . . . Initial 63 | . . 31 23 35 . . . 63 . . . Average 54 | . 61 42 43 41 . . 74 89 . . . Maximum Alert Level . | . . . . . . . . . . . . Low Security (%) 100 | 100 100 100 100 100 . 100 100 100 . . . Level 1 . | . . . . . . . . . . . . Level 2 . | . . . . . . . . . . . . Level 3 . | . . . . . . . . . . . . Level 4 . | . . . . . . . . . . . . Level 5 . | . . . . . . . . . . . . High Security . | . . . . . . . . . . . . Max Security . | . . . . . . . . . . . . Squads Dispatched 5 | . 2 . 2 . . . . 1 . . . Investigation 3 | . 1 . 1 . . . . 1 . . . Extermination . | . . . . . . . . . . . . Reinforcement 2 | . 1 . 1 . . . . . . . . Assault . | . . . . . . . . . . . . Garrison . | . . . . . . . . . . . . Intercept . | . . . . . . . . . . . . Searches Triggered . | . . . . . . . . . . . . Construction Impeded . | . . . . . . . . . . . . Haulers Reinforced . | . . . . . . . . . . . . Active Scanning Responses . | . . . . . . . . . . . . Cargo Convoy Interrupts . | . . . . . . . . . . . . Stealth | -11 -10 -10 -9 -9 -9 -8 -8 -7 -7 -7 -7 --------- Run | Jun Mat Min Mat Min Exi Min Mat Fac Low Low Dat Distress Signals 2 | . . . 1 . . . 1 . . . . Communications Jammed . | . . . . . . . . . . . . Distress Signals . | . . . . . . . . . . . . Times Spotted 55 | . 14 2 8 5 . . 15 4 1 2 4 Peak Tracking Total 10 | . 10 2 8 3 . . 10 2 1 1 4 Tactical Retreats 6 | . 1 1 . 1 . . 1 1 . 1 . Traps | -11 -10 -10 -9 -9 -9 -8 -8 -7 -7 -7 -7 ------- Run | Jun Mat Min Mat Min Exi Min Mat Fac Low Low Dat Traps Triggered 4 | . 2 . 1 . . . . 1 . . . Indirectly . | . . . . . . . . . . . . Trap Hack Attempts . | . . . . . . . . . . . . Triggered . | . . . . . . . . . . . . Disarmed . | . . . . . . . . . . . . Reprogrammed . | . . . . . . . . . . . . Reused . | . . . . . . . . . . . . Traps Extracted . | . . . . . . . . . . . . Installed . | . . . . . . . . . . . . Triggered 1 | . . . . . . . . . 1 . . Machines | -11 -10 -10 -9 -9 -9 -8 -8 -7 -7 -7 -7 ---------- Run | Jun Mat Min Mat Min Exi Min Mat Fac Low Low Dat Machines Disabled . | . . . . . . . . . . . . Max in Single Turn . | . . . . . . . . . . . . Machines Repaired . | . . . . . . . . . . . . Machines Sabotaged . | . . . . . . . . . . . . Overloaded Fab Kills . | . . . . . . . . . . . . Hacking | -11 -10 -10 -9 -9 -9 -8 -8 -7 -7 -7 -7 --------- Run | Jun Mat Min Mat Min Exi Min Mat Fac Low Low Dat Machines Accessed 6 | . 1 . . . . . . 2 . . 3 Terminals 2 | . . . . . . . . 2 . . . Fabricators . | . . . . . . . . . . . . Repair Stations . | . . . . . . . . . . . . Recycling Units 1 | . 1 . . . . . . . . . . Scanalyzers . | . . . . . . . . . . . . Garrison Access . | . . . . . . . . . . . . Total Hacks 30 | . 2 . . . . . . 8 . . 20 Successful 22 | . 1 . . . . . . 1 . . 20 Failed 8 | . 1 . . . . . . 7 . . . Catastrophic 1 | . . . . . . . . 1 . . . Database Lockouts . | . . . . . . . . . . . . Manual 10 | . 2 . . . . . . 8 . . . Terminals 8 | . . . . . . . . 8 . . . Fabricators . | . . . . . . . . . . . . Repair Stations . | . . . . . . . . . . . . Recycling Units 2 | . 2 . . . . . . . . . . Scanalyzers . | . . . . . . . . . . . . Garrison Access . | . . . . . . . . . . . . Terminal Hacks 21 | . . . . . . . . 1 . . 20 Record 2 | . . . . . . . . . . . 2 Part Schematic 11 | . . . . . . . . . . . 11 Robot Schematic 4 | . . . . . . . . . . . 4 Prototype ID Bank 3 | . . . . . . . . . . . 3 Branch Access Points 1 | . . . . . . . . 1 . . . Fabricator Hacks . | . . . . . . . . . . . . Repair Station Hacks . | . . . . . . . . . . . . Recycling Unit Hacks . | . . . . . . . . . . . . Scanalyzer . | . . . . . . . . . . . . Garrison Access Hacks . | . . . . . . . . . . . . Unauthorized Hacks 1 | . 1 . . . . . . . . . . Terminals . | . . . . . . . . . . . . Fabricators . | . . . . . . . . . . . . Repair Stations . | . . . . . . . . . . . . Recycling Units 1 | . 1 . . . . . . . . . . Tunnel 1 | . 1 . . . . . . . . . . Scanalyzers . | . . . . . . . . . . . . Garrison Access . | . . . . . . . . . . . . Data Cores Recovered . | . . . . . . . . . . . . Used . | . . . . . . . . . . . . Hacking Detections 1 | . . . . . . . . 1 . . . Full Trace Events 1 | . . . . . . . . 1 . . . Feedback Events . | . . . . . . . . . . . . Feedback Blocked . | . . . . . . . . . . . . Robot Schematics Acquired 4 | . . . . . . . . . . . 4 Robots Built . | . . . . . . . . . . . . Authchips . | . . . . . . . . . . . . Time . | . . . . . . . . . . . . Total Robot Build Rating . | . . . . . . . . . . . . Part Schematics Acquired 11 | . . . . . . . . . . . 11 Parts Built . | . . . . . . . . . . . . Authchips . | . . . . . . . . . . . . Time . | . . . . . . . . . . . . Total Part Build Rating . | . . . . . . . . . . . . Parts Repaired . | . . . . . . . . . . . . Time . | . . . . . . . . . . . . Parts Recycled . | . . . . . . . . . . . . Recycled Matter . | . . . . . . . . . . . . Retrieved Matter . | . . . . . . . . . . . . Retrieved Components . | . . . . . . . . . . . . Parts Scanalyzed . | . . . . . . . . . . . . Part Schematics Acquired . | . . . . . . . . . . . . Parts Damaged . | . . . . . . . . . . . . Bothacking | -11 -10 -10 -9 -9 -9 -8 -8 -7 -7 -7 -7 ------------ Run | Jun Mat Min Mat Min Exi Min Mat Fac Low Low Dat Used RIF Installer . | . . . . . . . . . . . . Robots Hacked . | . . . . . . . . . . . . Non-combat . | . . . . . . . . . . . . Combat . | . . . . . . . . . . . . Robot Hacks Applied . | . . . . . . . . . . . . Relay Couplers Released . | . . . . . . . . . . . . Fabnet Peak Effective % . | . . . . . . . . . . . . Robots Rewired . | . . . . . . . . . . . . Allies Hacked . | . . . . . . . . . . . . Hacks Repelled . | . . . . . . . . . . . . Allies | -11 -10 -10 -9 -9 -9 -8 -8 -7 -7 -7 -7 -------- Run | Jun Mat Min Mat Min Exi Min Mat Fac Low Low Dat Total Allies 3 | . . 3 . . . . . . . . . Largest Group 3 | . . 3 3 . . . . . . . . Highest-Rated Group 40 | . . 40 40 . . . . . . . . Highest-Rated Ally 16 | . . 16 16 . . . . . . . . Total Orders . | . . . . . . . . . . . . Ally Attacks 23 | . . . 23 . . . . . . . . Total Damage 269 | . . . 269 . . . . . . . . Kills 2 | . . . 2 . . . . . . . . Allies Corrupted . | . . . . . . . . . . . . Allies Melted . | . . . . . . . . . . . . Intel | -11 -10 -10 -9 -9 -9 -8 -8 -7 -7 -7 -7 ------- Run | Jun Mat Min Mat Min Exi Min Mat Fac Low Low Dat Robot Analysis Total 131 | . . . . . . . . . . . 131 Derelict Logs Recovered 6 | . . 1 . 2 . . . . 2 1 . Drone Launches . | . . . . . . . . . . . . Drone Recoveries . | . . . . . . . . . . . . Exploration | -11 -10 -10 -9 -9 -9 -8 -8 -7 -7 -7 -7 ------------- Run | Jun Mat Min Mat Min Exi Min Mat Fac Low Low Dat Turns Passed 900 | 66 95 53 36 98 19 8 70 132 87 187 49 Spaces Moved 1747 | 50 176 106 61 223 46 21 159 369 200 249 87 Core 802 | 23 176 106 61 65 . . 25 . 10 249 87 Treads 27 | 27 . . . . . . . . . . . Legs . | . . . . . . . . . . . . Wheels . | . . . . . . . . . . . . Hover . | . . . . . . . . . . . . Flight 918 | . . . . 158 46 21 134 369 190 . . Fastest Speed 31 | 50 50 50 50 40 40 40 40 31 40 50 50 Average Speed 47 | 109 50 50 50 42 40 40 41 33 43 62 51 Slowest Speed 160 | 160 50 50 50 50 40 40 50 40 100 100 100 Overloaded Moves . | . . . . . . . . . . . . Propulsion Burnouts . | . . . . . . . . . . . . Robots Hopped 8 | . . . . . . . 4 3 1 . . Cave-ins Triggered . | . . . . . . . . . . . . Exploration Rate (%) 33 | 5 43 42 15 67 10 9 28 11 40 52 82 Regions Visited 11 Branch Regions 7 Pre-discovered Areas 26 | . 1 1 . . . . . . . . 24 Known Exits Taken 2 | . . . . . . . . 1 1 . . Unknown Exits Taken 9 | 1 1 1 1 1 1 1 1 . . 1 . Scrap Searched 4 | . . . . 1 . . . . 1 2 . Spaces Dug . | . . . . . . . . . . . . Terrain Destroyed . | . . . . . . . . . . . . Melee . | . . . . . . . . . . . . Projectile . | . . . . . . . . . . . . AOE . | . . . . . . . . . . . . Terrain Rammed . | . . . . . . . . . . . . Walls Destroyed . | . . . . . . . . . . . . Machines Disabled . | . . . . . . . . . . . . Actions | -11 -10 -10 -9 -9 -9 -8 -8 -7 -7 -7 -7 --------- Run | Jun Mat Min Mat Min Exi Min Mat Fac Low Low Dat Total 1798 | 59 182 105 65 224 45 20 157 372 199 280 90 Wait 29 | . . . . . . . . . . 29 . Move 1723 | 49 175 105 61 222 45 20 152 362 197 248 87 Hop 6 | . . . . . . . 2 3 1 . . Pick Up 9 | . 3 . 2 . . . . 2 . 2 . Fast Attach 12 | 6 . . 2 1 . . 1 2 . . . Attach 5 | . . . . . . . . 3 1 . 1 Detach 1 | . . . . . . . . . . . 1 Swap . | . . . . . . . . . . . . Drop 6 | 4 . . . 1 . . . . . 1 . Fire . | . . . . . . . . . . . . Melee 1 | . . . . . . . . . . . 1 Ram 6 | . 4 . . . . . 2 . . . . Kick . | . . . . . . . . . . . . Crush . | . . . . . . . . . . . . Escape Stasis . | . . . . . . . . . . . . Rewire . | . . . . . . . . . . . . Trap . | . . . . . . . . . . . . Miscellaneous . | . . . . . . . . . . . . Route ------- -11/Junkyard -10/Materials (discovered 3 exits: [*Mat x2] / [*Min]) -10/Mines -9/Materials (discovered 2 exits: [*Min] / [*Sto]) -9/Mines (discovered 2 exits: [*Mat] / [*Exi]) -9/Exiles -8/Mines -8/Materials -7/Factory (discovered 2 exits: *Low x2) -7/Lower Caves -7/Lower Caves -7/Data Miner (discovered 1 exit: [*Pro]) History --------- Turn | Location | Event 2 | -11/Junkyard | Discovered new exit (range 16) 67 | -11/Junkyard | Entered Materials 90 | -10/Materials | Discovered new exit (range 16) 144 | -10/Materials | Discovered new exit (range 4) 148 | -10/Materials | Core integrity fell below 50% 156 | -10/Materials | Discovered new exit (range 13) 162 | -10/Materials | Entered Mines 190 | -10/Mines | Learned location of Zion (-6) 200 | -10/Mines | Found a hidden stash of uninstalled traps 209 | -10/Mines | Discovered new exit (range 5) 212 | -10/Mines | Assisted by bots powering up and referring to "LRC-V3" 215 | -10/Mines | Entered Materials 215 | -9/Materials | Accompanied by 3 allies 215 | -9/Materials | Evolved 2 slots: Propulsion x2 221 | -9/Materials | Discovered new exit (range 5) 248 | -9/Materials | Discovered new exit (range 6) 251 | -9/Materials | Entered Mines 261 | -9/Mines | Joined a pair of Derelicts in attacking an 0b10 outpost 274 | -9/Mines | Learned 2 Materials zone layouts 282 | -9/Mines | Received a Rocket Launcher from a helpful Derelict 306 | -9/Mines | Build established: Mutant 312 | -9/Mines | Discovered new exit (range 3) 340 | -9/Mines | Learned 2 Materials zone layouts 342 | -9/Mines | Found a damaged Exp. Sensor Array with a note attached 347 | -9/Mines | Deemed a non-threat by the Exiles lab entrance 347 | -9/Mines | Discovered new exit (range 5) 349 | -9/Mines | Entered Exiles 360 | -9/Exiles | Met 8R-AWN 363 | -9/Exiles | Discovered new exit (range 14) 368 | -9/Exiles | Entered Mines 374 | -8/Mines | Discovered new exit (range 7) 376 | -8/Mines | Entered Materials 376 | -8/Materials | Evolved 2 slots: Propulsion x1, Utility x1 428 | -8/Materials | Discovered new exit (range 16) 446 | -8/Materials | Entered Factory 446 | -7/Factory | Evolved 2 slots: Propulsion x1, Utility x1 453 | -7/Factory | Discovered new exit (range 6) 467 | -7/Factory | Identified exit to Lower Caves 578 | -7/Factory | Entered Lower Caves 583 | -7/Lower Caves | Lost 5 parts (1p3n1u) 613 | -7/Lower Caves | Identified exit to Lower Caves 624 | -7/Lower Caves | Learned Factory interactive machine intel 665 | -7/Lower Caves | Entered another Lower Caves area 677 | -7/Lower Caves | Encountered a Warlord checkpoint 730 | -7/Lower Caves | Attracted the attention of an 0b10 checkpoint 765 | -7/Lower Caves | Core integrity fell below 50% 831 | -7/Lower Caves | Learned Factory terminal intel 842 | -7/Lower Caves | Spotted B-75 Beast 846 | -7/Lower Caves | Discovered new exit (range 13) 852 | -7/Lower Caves | Entered Data Miner 852 | -7/Data Miner | Discovered new exit (range 7) 860 | -7/Data Miner | Met Data Miner 876 | -7/Data Miner | Acquired the access code to Warlord's prototype stash 876 | -7/Data Miner | Learned location of Section 7 (-2) 881 | -7/Data Miner | Received God Mode back door access code from Data Miner 889 | -7/Data Miner | Interfaced with the Data Conduit 900 | -7/Data Miner | Core integrity fell below 20% 901 | -7/Data Miner | Destroyed by Enhanced Grunt with Neutron Cannon Last Messages --------------- point out they're in his stash, behind the door with an access code of \\JXKG. >>Intel "Section 7 Location" You were born here, LRC-V3. The question is, can you return on your own terms? World map updated: -2/Section 7. Data Miner: I've just received further instructions. God Mode is nearly complete and we think you might be able to put it to better use than Warlord, so if you see an opportunity, hack it and enter \\AFM7 to gain control via the back door I've installed. Now off with you. 00886_ Sneak attack on Data Miner. 00886_ Data Miner disappears through a trap door. 00889_ Interfacing with system... Downloaded 131 analysis records. Downloaded 719 prototype IDs. Downloaded central machine database. Downloaded 23 destinations. Downloaded encryption format records. Connection remotely terminated. Map ----- +----------------------------------------------------+ | | | | | | | | | | | | | | | | | | | | | | | | | | | | | | | | | ???????????????????????????????????????????? | | ???????????????????????????????????????????? | | ???????????????????????????????????????????? | | ???????????????????????????????????????????? | | ???????????????????????????????####????????? | | ###############????#########?### #????????? | | """"""""""""""###### # # # ### #????????? | | """"""" """"""""# # # # ## < ##????????? | | """"""" g g gg ######???? | | """" @ #???? | | """" #???? | | """ #???? | | """" ##???? | | """" """ "" """""""""#####????? | | """"" """"###############????????? | | """"" " ""###??????????????????????? | | """"""" "#####????????????????????????? | | ######"## "#????????????????????????????? | | ?????#"### "#????????????????????????????? | | ?????#"### "#????????????????????????????? | | ?????#"## "#????????????????????????????? | | ?????#"## "#????????????????????????????? | | ?????#"# "#????????????????????????????? | | ???????### "#????????????????????????????? | | ?????????# "##???????????????????????????? | | ????????## ""#???????????????????????????? | | ?????#?## ""#???????????????????????????? | | ??#"##"#"X ""#???????????????????????????? | | ??#"""""" "#####???????????????????????? | | ??##""""" X"""""#???????????????????????? | | ???###"#"X "##"##???????????????????????? | | ?????#"## X""""#????????????????????????? | | ????????## "##"#????????????????????????? | | ?????????#######??#????????????????????????? | +----------------------------------------------------+ Best States ------------- Heat Dissipation 34 Energy Generation 14 Energy Capacity 160 Matter Stores 300 Matter Capacity 300 Sight Range 20 Terrain Scan Density 10 Armor Coverage 150 Propulsion Shielding 33 Evasion (%) 63 Recoil Reduction 2 Item Schematics ----------------- Combat Drone Bay | -7/Data Miner | Free Lgt. Regenerative Plating | -7/Data Miner | Free Biomechanical Wings | -7/Data Miner | Free Exp. Targeting Computer | -7/Data Miner | Free Cld. Plasma Cannon | -7/Data Miner | Free Nuclear Pulse Array | -7/Data Miner | Free Remote Force Field | -7/Data Miner | Free Lgt. Fission Core | -7/Data Miner | Free Hvy. Treads | -7/Data Miner | Free Imp. Force Booster | -7/Data Miner | Free Hyp. Coil Gun | -7/Data Miner | Free Robot Schematics ------------------ L-41 Fighter | -7/Data Miner | Free M-28 Smith | -7/Data Miner | Free A-15 Conveyor | -7/Data Miner | Free R-10 Processor | -7/Data Miner | Free Fabricated ------------ Nothing Alien Tech Used ----------------- None Achievements -------------- None Challenges ------------ None Game ------ Seed BeamTransportActivator Manual? 0 Play Time 00:11:36 Cumulative 190.8 hours Start 2023.05.10 @ 22:59:39 End 2023.05.10 @ 23:14:55 Sessions 1 Manual Loads 0 Difficulty Rogue Special Mode None Game No. 547 Rogue 547 Adventurer 0 Explorer 0 Win Type - Total 9 Types 7/0/1/1/0/0/0/0/0 Lore% 77 Gallery% 76 Achievement% 68 Wizard Run 0 Options --------- ASCII 0 Keyboard 0 Movement Numpad Keybinds 0 Fullscreen 1 Font 16/SmallcapsGlow Map View 75x55 Tactical HUD 1 Map Filters NONE Filters NONE Steam 1 RUN: ce68ac96-8421-4ff6-b38e-4668e2b8cbae